fUST/lending_fUST_20240721
["ID","MTS","AMOUNT","RATE_DAILY","PERIOD"]
[332826031,1721555462606,-500.0,0.00013972,2]
[332826032,1721555462615,-545.06,0.00013972,2]
[332826033,1721555462625,-318.94156302,0.00013972,2]
[332826034,1721555462634,-500.0,0.00013972,2]
[332826035,1721555462644,-501.27775166,0.00013972,2]
[332826036,1721555462653,-1404.46,0.00013972,2]
[332826037,1721555462663,-500.0,0.00013972,2]
[332826038,1721555462672,-500.63230799,0.00013972,2]
[332826039,1721555462682,-500.0,0.00013972,2]
[332826040,1721555462691,-833.83,0.00013972,2]
[332826041,1721555462700,-1209.24,0.00013972,2]
[332826042,1721555462710,-1628.16,0.00013972,2]
[332826043,1721555462720,-321.88031279,0.00013972,2]
[332826044,1721555462729,-661.79,0.00013972,2]
[332826045,1721555462739,-500.0,0.00013972,2]
[332826046,1721555462748,-500.0,0.00013972,2]
[332826047,1721555462759,-500.0,0.00013972,2]
[332826048,1721555462768,-3665.72,0.00013972,2]
[332826049,1721555462777,-500.0,0.00013972,2]
[332826050,1721555462787,-500.0,0.00013972,2]
[332826051,1721555462796,-500.0,0.00013972,2]
[332826052,1721555462806,-1370.23,0.00013972,2]
[332826053,1721555462816,-500.0,0.00013972,2]
[332826054,1721555462825,-500.0,0.00013972,2]
[332826055,1721555462835,-500.0,0.00013972,2]
[332826056,1721555462844,-1643.03,0.00013972,2]
[332826057,1721555462855,-278.59547819,0.00013972,2]
[332826058,1721555462865,-500.0,0.00013972,2]
[332826059,1721555462874,-151.0,0.00013972,2]
[332826060,1721555462884,-245.29535,0.00013972,2]
[332826061,1721555462893,-151.0,0.00013972,2]
[332826062,1721555462903,-151.0,0.00013972,2]
[332826063,1721555462913,-151.0,0.00013972,2]
[332826064,1721555462923,-746.0,0.00013972,2]
[332826065,1721555462932,-519.0,0.00013972,2]
[332826066,1721555462942,-500.0,0.00013972,2]
[332826067,1721555462952,-500.0,0.00013972,2]
[332826068,1721555462962,-500.0,0.00013972,2]
[332826069,1721555462971,-500.0,0.00013972,2]
[332826070,1721555462981,-509.17657839,0.00013972,2]
[332826071,1721555462991,-1302.9,0.00013972,2]
[332826072,1721555463001,-691.51,0.00013972,2]
[332826073,1721555463011,-151.0,0.00013972,2]
[332826074,1721555463022,-151.0,0.00013972,2]
[332826075,1721555463037,-500.0,0.00013972,2]
[332826076,1721555463048,-1951.57,0.00013972,2]
[332826077,1721555463062,-851.67,0.00013972,2]
[332826078,1721555463074,-500.0,0.00013972,2]
[332826079,1721555463085,-1638.21,0.00013972,2]
[332826080,1721555463096,-500.0,0.00013972,2]
[332826081,1721555463115,-1766.14,0.00013972,2]
[332826082,1721555463126,-500.0,0.00013972,2]
[332826083,1721555463137,-500.0,0.00013972,2]
[332826084,1721555463147,-504.69211526,0.00013972,2]
[332826085,1721555463158,-309.55895035,0.00013972,2]
[332826086,1721555463168,-500.0,0.00013972,2]
[332826087,1721555463178,-500.0,0.00013972,2]
[332826088,1721555463187,-237.003861,0.00013972,2]
[332826089,1721555463197,-500.0,0.00013972,2]
[332826090,1721555463207,-500.0,0.00013972,2]
[332826091,1721555463218,-500.0,0.00013972,2]
[332826092,1721555463227,-500.0,0.00013972,2]
[332826093,1721555463237,-506.13855542,0.00013972,2]
[332826094,1721555463247,-891.54,0.00013972,2]
[332826095,1721555463257,-500.0,0.00013972,2]
[332826096,1721555463267,-500.0,0.00013972,2]
[332826097,1721555463276,-502.33841024,0.00013972,2]
[332826098,1721555463286,-500.0,0.00013972,2]
[332826099,1721555463296,-850.08,0.00013972,2]
[332826100,1721555463308,-500.0,0.00013972,2]
[332826101,1721555463318,-500.0,0.00013972,2]
[332826102,1721555463328,-1954.503279,0.00013972,2]
[332826103,1721555463338,-607.9,0.00013972,2]
[332826104,1721555463350,-505.52858178,0.00013972,2]
[332826105,1721555463360,-542.13614151,0.00013972,2]
[332826106,1721555463372,-500.0,0.00013972,2]
[332826107,1721555463535,-2629.93,0.00013972,2]
[332826108,1721555463545,-500.0,0.00013972,2]
[332826109,1721555463555,-3809.04,0.00013972,2]
[332826110,1721555463566,-500.0,0.00013972,2]
[332826111,1721555463576,-500.0,0.00013972,2]
[332826112,1721555463585,-725.31,0.00013972,2]
[332826113,1721555463595,-1657.69,0.00013972,2]
[332826114,1721555463610,-502.50181484,0.00013972,2]
[332826115,1721555463620,-634.57,0.00013972,2]
[332826116,1721555463630,-845.97,0.00013972,2]
[332826117,1721555463639,-500.0,0.00013972,2]
[332826118,1721555463650,-500.0,0.00013972,2]
[332826119,1721555463660,-500.0,0.00013972,2]
[332826120,1721555463670,-500.0,0.00013972,2]
[332826121,1721555463681,-500.0,0.00013972,2]
[332826122,1721555463691,-151.0,0.00013972,2]
[332826123,1721555463701,-151.0,0.00013972,2]
[332826124,1721555463711,-500.0,0.00013972,2]
[332826125,1721555463720,-590.28328048,0.00013972,2]
[332826126,1721555463730,-1314.43913,0.00013972,2]
[332826127,1721555463740,-783.25,0.00013972,2]
[332826128,1721555463749,-1314.43913,0.00013972,2]
[332826129,1721555463759,-4816.730896,0.00013972,2]
[332826130,1721555463768,-500.0,0.00013972,2]
[332826131,1721555463778,-4816.730896,0.00013972,2]
[332826132,1721555463788,-1314.43913,0.00013972,2]
[332826133,1721555463798,-1314.439124,0.00013972,2]
[332826134,1721555463807,-500.0,0.00013972,2]
[332826135,1721555463816,-4816.730896,0.00013972,2]
[332826136,1721555463826,-4816.73089418,0.00013972,2]
[332826137,1721555463836,-500.0,0.00013972,2]
[332826138,1721555463846,-643.52,0.00013972,2]
[332826139,1721555463858,-500.0,0.00013972,2]
[332826140,1721555463868,-500.0,0.00013972,2]
[332826141,1721555463878,-535.19732212,0.00013972,2]
[332826142,1721555463887,-1329.69,0.00013972,2]
[332826143,1721555463897,-500.0,0.00013972,2]
[332826144,1721555463907,-800.17,0.00013972,2]
[332826145,1721555463918,-282.294659,0.00013972,2]
[332826146,1721555463929,-282.294659,0.00013972,2]
[332826147,1721555463939,-653.3,0.00013972,2]
[332826148,1721555463950,-1574.12,0.00013972,2]
[332826149,1721555463960,-500.0,0.00013972,2]
[332826150,1721555463970,-500.0,0.00013972,2]
[332826151,1721555463980,-282.294659,0.00013972,2]
[332826152,1721555463990,-500.0,0.00013972,2]
[332826153,1721555464000,-282.294665,0.00013972,2]
[332826154,1721555464011,-500.0,0.00013972,2]
[332826155,1721555464024,-500.0,0.00013972,2]
[332826156,1721555464036,-500.0,0.00013972,2]
[332826157,1721555464046,-692.3,0.00013972,2]
[332826158,1721555464056,-2058.513491,0.00013972,2]
[332826159,1721555464067,-2058.513491,0.00013972,2]
[332826160,1721555464076,-2560.81,0.00013972,2]
[332826161,1721555464086,-500.0,0.00013972,2]
[332826162,1721555464096,-1699.44,0.00013972,2]
[332826163,1721555464108,-2058.513491,0.00013972,2]
[332826164,1721555464118,-2058.513499,0.00013972,2]
[332826165,1721555464127,-599.61978005,0.00013972,2]
[332826166,1721555464138,-500.0,0.00013972,2]
[332826167,1721555464149,-500.0,0.00013972,2]
[332826168,1721555464159,-500.0,0.00013972,2]
[332826169,1721555464171,-945.87,0.00013972,2]
[332826170,1721555464183,-803.31,0.00013972,2]
[332826171,1721555464193,-502.05208908,0.00013972,2]
[332826172,1721555464204,-500.0,0.00013972,2]
[332826173,1721555464215,-4108.8,0.00013972,2]
[332826174,1721555464226,-500.0,0.00013972,2]
[332826175,1721555464238,-500.0,0.00013972,2]
[332826176,1721555464248,-502.10063732,0.00013972,2]
[332826177,1721555464260,-2337.32,0.00013972,2]
[332826178,1721555464270,-417.77535033,0.00013972,2]
[332826179,1721555464281,-500.0,0.00013972,2]
[332826180,1721555464291,-500.0,0.00013972,2]
[332826181,1721555464302,-500.0,0.00013972,2]
[332826182,1721555464312,-500.0,0.00013972,2]
[332826183,1721555464322,-567.17,0.00013972,2]
[332826184,1721555464332,-844.85,0.00013972,2]
[332826185,1721555464343,-588.49,0.00013972,2]
[332826186,1721555464353,-500.0,0.00013972,2]
[332826187,1721555464363,-500.0,0.00013972,2]
[332826188,1721555464373,-500.0,0.00013972,2]
[332826189,1721555464383,-500.0,0.00013972,2]
[332826190,1721555464393,-500.0,0.00013972,2]
[332826191,1721555464403,-500.0,0.00013972,2]
[332826192,1721555464413,-500.0,0.00013972,2]
[332826193,1721555464423,-508.47700449,0.00013972,2]
[332826194,1721555464432,-816.43,0.00013972,2]
[332826195,1721555464442,-6949.94,0.00013972,2]
[332826196,1721555464453,-500.0,0.00013972,2]
[332826197,1721555464463,-500.0,0.00013972,2]
[332826198,1721555464473,-500.0,0.00013972,2]
[332826199,1721555464483,-2185.03,0.00013972,2]
[332826200,1721555464494,-500.0,0.00013972,2]
[332826201,1721555464504,-3211.54,0.00013972,2]
[332826202,1721555464515,-944.31,0.00013972,2]
[332826203,1721555464524,-1116.24,0.00013972,2]
[332826204,1721555464534,-500.0,0.00013972,2]
[332826205,1721555464545,-500.0,0.00013972,2]
[332826206,1721555464555,-1149.02,0.00013972,2]
[332826207,1721555464564,-500.0,0.00013972,2]
[332826208,1721555464574,-583.31,0.00013972,2]
[332826209,1721555464585,-500.0,0.00013972,2]
[332826210,1721555464596,-502.69202038,0.00013972,2]
[332826211,1721555464606,-632.18,0.00013972,2]
[332826212,1721555464616,-500.0,0.00013972,2]
[332826213,1721555464625,-5623.74,0.00013972,2]
[332826214,1721555464635,-2388.12,0.00013972,2]
[332826215,1721555464644,-1458.49,0.00013972,2]
[332826216,1721555464654,-500.0,0.00013972,2]
[332826217,1721555464664,-1024.76,0.00013972,2]
[332826218,1721555464673,-500.0,0.00013972,2]
[332826219,1721555464683,-500.0,0.00013972,2]
[332826220,1721555464692,-485.94756318,0.00013972,2]
[332826221,1721555464701,-957.16,0.00013972,2]
[332826222,1721555464711,-500.0,0.00013972,2]
[332826223,1721555464721,-500.0,0.00013972,2]
[332826224,1721555464731,-500.0,0.00013972,2]
[332826225,1721555464740,-368.76987272,0.00013972,2]
[332826226,1721555464750,-500.0,0.00013972,2]
[332826227,1721555464760,-500.0,0.00013972,2]
[332826228,1721555464770,-973.9,0.00013972,2]
[332826229,1721555464779,-500.0,0.00013972,2]
[332826230,1721555464788,-500.0,0.00013972,2]
[332826231,1721555464799,-632.5,0.00013972,2]
[332826232,1721555464808,-510.96767245,0.00013972,2]
[332826233,1721555464819,-500.0,0.00013972,2]
[332826234,1721555464830,-2617.63,0.00013972,2]
[332826235,1721555464841,-500.0,0.00013972,2]
[332826236,1721555464851,-500.0,0.00013972,2]
[332826237,1721555464863,-500.0,0.00013972,2]
[332826238,1721555464875,-500.0,0.00013972,2]
[332826239,1721555464884,-507.14227724,0.00013972,2]
[332826240,1721555464894,-500.0,0.00013972,2]
[332826241,1721555464904,-500.0,0.00013972,2]
[332826242,1721555464914,-500.0,0.00013972,2]
[332826243,1721555464923,-500.0,0.00013972,2]
[332826244,1721555464933,-500.0,0.00013972,2]
[332826245,1721555464943,-2068.81,0.00013972,2]
[332826246,1721555464953,-695.53,0.00013972,2]
[332826247,1721555464962,-500.0,0.00013972,2]
[332826248,1721555464972,-16179.83,0.00013972,2]
[332826249,1721555464982,-501.62515086,0.00013972,2]
[332826250,1721555464992,-1724.01,0.00013972,2]
[332826251,1721555465003,-500.0,0.00013972,2]
[332826252,1721555465014,-500.0,0.00013972,2]
[332826253,1721555465029,-524.17638858,0.00013972,2]
[332826254,1721555465038,-1904.33,0.00013972,2]
[332826255,1721555465048,-500.0,0.00013972,2]
[332826256,1721555465058,-3028.5,0.00013972,2]
[332826257,1721555465070,-500.0,0.00013972,2]
[332826258,1721555465080,-5029.23,0.00013972,2]
[332826259,1721555465090,-2749.41,0.00013972,2]
[332826260,1721555465102,-500.0,0.00013972,2]
[332826261,1721555465112,-707.38,0.00013972,2]
[332826262,1721555465121,-1511.47,0.00013972,2]
[332826263,1721555465131,-516.24,0.00013972,2]
[332826264,1721555465142,-500.0,0.00013972,2]
[332826265,1721555465152,-500.0,0.00013972,2]
[332826266,1721555465163,-500.0,0.00013972,2]
[332826267,1721555465172,-500.0,0.00013972,2]
[332826268,1721555465182,-500.0,0.00013972,2]
[332826269,1721555465192,-500.0,0.00013972,2]
[332826270,1721555465201,-500.0,0.00013972,2]
[332826271,1721555465212,-176.02174883,0.00013972,2]
[332826272,1721555465222,-500.0,0.00013972,2]
[332826273,1721555465231,-777.05,0.00013972,2]
[332826274,1721555465241,-500.0,0.00013972,2]
[332826275,1721555465251,-500.0,0.00013972,2]
[332826276,1721555465261,-517.8,0.00013972,2]
[332826277,1721555465271,-500.0,0.00013972,2]
[332826278,1721555465281,-2876.98,0.00013972,2]
[332826279,1721555465291,-6758.6,0.00013972,2]
[332826280,1721555465302,-500.0,0.00013972,2]
[332826281,1721555465311,-531.23,0.00013972,2]
[332826282,1721555465321,-159.98243561,0.00013972,2]
[332826283,1721555465332,-500.0,0.00013972,2]
[332826284,1721555465341,-500.0,0.00013972,2]
[332826285,1721555465353,-4427.76,0.00013972,2]
[332826286,1721555465363,-2068.27,0.00013972,2]
[332826287,1721555465373,-956.1,0.00013972,2]
[332826288,1721555465383,-10406.05,0.00013972,2]
[332826289,1721555465393,-517.2453596,0.00013972,2]
[332826290,1721555465403,-500.0,0.00013972,2]
[332826291,1721555465412,-500.0,0.00013972,2]
[332826292,1721555465424,-500.0,0.00013972,2]
[332826293,1721555465434,-500.0,0.00013972,2]
[332826294,1721555465444,-1432.76,0.00013972,2]
[332826295,1721555465453,-500.0,0.00013972,2]
[332826296,1721555465463,-500.0,0.00013972,2]
[332826297,1721555465472,-500.0,0.00013972,2]
[332826298,1721555465481,-500.0,0.00013972,2]
[332826299,1721555465491,-1086.18,0.00013972,2]
[332826300,1721555465500,-500.0,0.00013972,2]
[332826301,1721555465511,-500.0,0.00013972,2]
[332826302,1721555465521,-500.0,0.00013972,2]
[332826303,1721555465530,-1054.99,0.00013972,2]
[332826304,1721555465540,-500.0,0.00013972,2]
[332826305,1721555465550,-500.0,0.00013972,2]
[332826306,1721555465560,-500.0,0.00013972,2]
[332826307,1721555465570,-593.43,0.00013972,2]
[332826308,1721555465580,-502.8734352,0.00013972,2]
[332826309,1721555465590,-3630.44,0.00013972,2]
[332826310,1721555465600,-500.0,0.00013972,2]
[332826311,1721555465610,-541.51,0.00013972,2]
[332826312,1721555465620,-510.86997499,0.00013972,2]
[332826313,1721555465630,-975.16,0.00013972,2]
[332826314,1721555465639,-1109.28,0.00013972,2]
[332826315,1721555465649,-500.0,0.00013972,2]
[332826316,1721555465659,-500.0,0.00013972,2]
[332826317,1721555465668,-500.0,0.00013972,2]
[332826318,1721555465679,-500.0,0.00013972,2]
[332826319,1721555465688,-504.64887962,0.00013972,2]
[332826320,1721555465698,-500.0,0.00013972,2]
[332826321,1721555465707,-2529.69,0.00013972,2]
[332826322,1721555465717,-500.0,0.00013972,2]
[332826323,1721555465727,-500.0,0.00013972,2]
[332826324,1721555465736,-500.0,0.00013972,2]
[332826325,1721555465746,-500.0,0.00013972,2]
[332826326,1721555465755,-500.0,0.00013972,2]
[332826327,1721555465765,-500.0,0.00013972,2]
[332826328,1721555465775,-500.0,0.00013972,2]
[332826329,1721555465784,-565.06,0.00013972,2]
[332826330,1721555465794,-500.0,0.00013972,2]
[332826331,1721555465803,-152.82767192,0.00013972,2]
[332826332,1721555465814,-1908.54,0.00013972,2]
[332826333,1721555465823,-500.0,0.00013972,2]
[332826334,1721555465833,-325.27060358,0.00013972,2]
[332826335,1721555465843,-500.0,0.00013972,2]
[332826336,1721555465853,-500.0,0.00013972,2]
[332826337,1721555465863,-1350.01,0.00013972,2]
[332826338,1721555465872,-500.0,0.00013972,2]
[332826339,1721555465882,-1804.15,0.00013972,2]
[332826340,1721555465892,-1208.6,0.00013972,2]
[332826341,1721555465902,-500.0,0.00013972,2]
[332826342,1721555465911,-500.0,0.00013972,2]
[332826343,1721555465921,-1069.63,0.00013972,2]
[332826344,1721555465931,-500.0,0.00013972,2]
[332826345,1721555465941,-761.71,0.00013972,2]
[332826346,1721555465950,-500.0,0.00013972,2]
[332826347,1721555465960,-1231.03,0.00013972,2]
[332826348,1721555465970,-1523.16,0.00013972,2]
[332826349,1721555465979,-500.0,0.00013972,2]
[332826350,1721555465989,-500.0,0.00013972,2]
[332826351,1721555465999,-2159.65,0.00013972,2]
[332826352,1721555466009,-500.0,0.00013972,2]
[332826353,1721555466018,-500.0,0.00013972,2]
[332826354,1721555466093,-1372.42,0.00013972,2]
[332826355,1721555466106,-500.0,0.00013972,2]
[332826356,1721555466116,-518.93918711,0.00013972,2]
[332826357,1721555466125,-500.0,0.00013972,2]
[332826358,1721555466135,-2905.52,0.00013972,2]
[332826359,1721555466145,-500.0,0.00013972,2]
[332826360,1721555466155,-500.0,0.00013972,2]
[332826361,1721555466165,-500.0,0.00013972,2]
[332826362,1721555466174,-736.04,0.00013972,2]
[332826363,1721555466184,-500.0,0.00013972,2]
[332826364,1721555466193,-613.12,0.00013972,2]
[332826365,1721555466203,-1936.8,0.00013972,2]
[332826366,1721555466212,-8727.07,0.00013972,2]
[332826367,1721555466222,-500.0,0.00013972,2]
[332826368,1721555466231,-500.0,0.00013972,2]
[332826369,1721555466241,-825.75,0.00013972,2]
[332826370,1721555466250,-501.64391402,0.00013972,2]
[332826371,1721555466259,-500.0,0.00013972,2]
[332826372,1721555466269,-500.0,0.00013972,2]
[332826373,1721555466278,-500.0,0.00013972,2]
[332826374,1721555466288,-500.0,0.00013972,2]
[332826375,1721555466297,-659.28,0.00013972,2]
[332826376,1721555466306,-500.0,0.00013972,2]
[332826377,1721555466317,-500.0,0.00013972,2]
[332826378,1721555466326,-500.0,0.00013972,2]
[332826379,1721555466335,-500.0,0.00013972,2]
[332826380,1721555466346,-500.0,0.00013972,2]
[332826381,1721555466356,-576.42,0.00013972,2]
[332826382,1721555466366,-512.45577569,0.00013972,2]
[332826383,1721555466376,-500.0,0.00013972,2]
[332826384,1721555466386,-11437.01,0.00013972,2]
[332826385,1721555466396,-500.0,0.00013972,2]
[332826386,1721555466405,-500.0,0.00013972,2]
[332826387,1721555466415,-500.0,0.00013972,2]
[332826388,1721555466424,-915.6,0.00013972,2]
[332826389,1721555466435,-500.0,0.00013972,2]
[332826390,1721555466445,-500.0,0.00013972,2]
[332826391,1721555466455,-500.0,0.00013972,2]
[332826392,1721555466465,-500.0,0.00013972,2]
[332826393,1721555466475,-1115.74,0.00013972,2]
[332826394,1721555466484,-500.0,0.00013972,2]
[332826395,1721555466494,-986.73,0.00013972,2]
[332826396,1721555466504,-999.52,0.00013972,2]
[332826397,1721555466513,-502.14441121,0.00013972,2]
[332826398,1721555466522,-500.0,0.00013972,2]
[332826399,1721555466532,-500.0,0.00013972,2]
[332826400,1721555466541,-500.0,0.00013972,2]
[332826401,1721555466551,-1758.85,0.00013972,2]
[332826402,1721555466560,-1641.25,0.00013972,2]
[332826403,1721555466570,-500.0,0.00013972,2]
[332826404,1721555466580,-500.0,0.00013972,2]
[332826405,1721555466591,-957.56,0.00013972,2]
[332826406,1721555466603,-500.0,0.00013972,2]
[332826407,1721555466612,-500.0,0.00013972,2]
[332826408,1721555466623,-562.35,0.00013972,2]
[332826409,1721555466636,-501.75326931,0.00013972,2]
[332826410,1721555466646,-363.12720465,0.00013972,2]
[332826411,1721555466655,-1680.3,0.00013972,2]
[332826412,1721555466664,-500.0,0.00013972,2]
[332826413,1721555466673,-500.0,0.00013972,2]
[332826414,1721555466682,-5123.06,0.00013972,2]
[332826415,1721555466691,-6994.79,0.00013972,2]
[332826416,1721555466700,-500.0,0.00013972,2]
[332826417,1721555466709,-199.89976023,0.00013972,2]
[332826418,1721555466719,-2013.0,0.00013972,2]
[332826419,1721555466729,-500.0,0.00013972,2]
[332826420,1721555466739,-1205.93,0.00013972,2]
[332826421,1721555466750,-500.0,0.00013972,2]
[332826422,1721555466759,-2326.38,0.00013972,2]
[332826423,1721555466770,-534.27,0.00013972,2]
[332826424,1721555466780,-500.0,0.00013972,2]
[332826425,1721555466790,-500.0,0.00013972,2]
[332826426,1721555466799,-500.0,0.00013972,2]
[332826427,1721555466809,-812.3,0.00013972,2]
[332826428,1721555466821,-500.0,0.00013972,2]
[332826429,1721555466832,-500.0,0.00013972,2]
[332826430,1721555466843,-500.0,0.00013972,2]
[332826431,1721555466854,-500.0,0.00013972,2]
[332826432,1721555466864,-500.0,0.00013972,2]
[332826433,1721555466874,-195.8633417,0.00014,2]
[332826434,1721555466884,-150.112233,0.00014,3]
[332826435,1721555466894,-150.112233,0.00014,3]
[332826436,1721555466904,-731.316126,0.0001404,2]
[332826437,1721555466914,-418.789504,0.0001404,2]
[332826438,1721555466925,-151.944204,0.0001404,2]
[332826439,1721555466937,-193.245889,0.0001404,2]
[332826440,1721555466948,-165.451103,0.0001404,2]
[332826441,1721555466958,-425.766,0.00014072,2]
[332826442,1721555466969,-174.495626,0.00014098,2]
[332826443,1721555466980,-158.357509,0.00014098,2]
[332826444,1721555466990,-156.381405,0.00014098,2]
[332826445,1721555467000,-150.112233,0.000141,4]
[332826446,1721555467010,-150.112233,0.000141,5]
[332826447,1721555467020,-150.112233,0.000142,2]
[332826448,1721555467034,-353.685934,0.00014201,2]
[332826449,1721555467044,-288.437872,0.00014201,2]
[332826450,1721555467054,-159.035446,0.00014201,2]
[332826451,1721555467064,-731.316126,0.00014213,2]
[332826452,1721555467075,-418.789504,0.00014213,2]
[332826453,1721555467084,-151.944204,0.00014213,2]
[332826454,1721555467093,-193.245889,0.00014213,2]
[332826455,1721555467104,-165.451103,0.00014213,2]
[332826456,1721555467115,-1453.14,0.00014246,2]
[332826457,1721555467126,-500.0,0.00014246,2]
[332826458,1721555467137,-500.0,0.00014246,2]
[332826459,1721555467147,-500.0,0.00014246,2]
[332826460,1721555467157,-500.0,0.00014246,2]
[332826461,1721555467168,-500.0,0.00014246,2]
[332826462,1721555467178,-151.0,0.00014246,2]
[332826463,1721555467188,-151.0,0.00014246,2]
[332826464,1721555467198,-151.0,0.00014246,2]
[332826465,1721555467208,-289.497731,0.00014246,2]
[332826466,1721555467219,-500.0,0.00014246,2]
[332826467,1721555467228,-500.0,0.00014246,2]
[332826468,1721555467238,-500.0,0.00014246,2]
[332826469,1721555467248,-252.05,0.00014246,2]
[332826470,1721555467258,-252.05,0.00014246,2]
[332826471,1721555467267,-252.05,0.00014246,2]
[332826472,1721555467277,-252.05,0.00014246,2]
[332826473,1721555467287,-1466.7,0.00014246,2]
[332826474,1721555467296,-500.0,0.00014246,2]
[332826475,1721555467309,-500.0,0.00014246,2]
[332826476,1721555467319,-500.0,0.00014246,2]
[332826477,1721555467328,-500.0,0.00014246,2]
[332826478,1721555467338,-500.0,0.00014246,2]
[332826479,1721555467349,-503.08688821,0.00014246,2]
[332826480,1721555467358,-500.0,0.00014246,2]
[332826481,1721555467369,-500.0,0.00014246,2]
[332826482,1721555467378,-809.83,0.00014246,2]
[332826483,1721555467388,-790.39,0.00014246,2]
[332826484,1721555467397,-500.0,0.00014246,2]
[332826485,1721555467407,-502.82370706,0.00014246,2]
[332826486,1721555467417,-500.0,0.00014246,2]
[332826487,1721555467426,-581.65,0.00014246,2]
[332826488,1721555467436,-547.55,0.00014246,2]
[332826489,1721555467446,-500.0,0.00014246,2]
[332826490,1721555467456,-500.0,0.00014246,2]
[332826491,1721555467466,-500.0,0.00014246,2]
[332826492,1721555467475,-500.0,0.00014246,2]
[332826493,1721555467484,-500.0,0.00014246,2]
[332826494,1721555467496,-500.0,0.00014246,2]
[332826495,1721555467506,-535.40852555,0.00014246,2]
[332826496,1721555467516,-500.0,0.00014246,2]
[332826497,1721555467529,-340.23132487,0.00014246,2]
[332826498,1721555467538,-500.0,0.00014246,2]
[332826499,1721555467547,-151.0,0.00014246,2]
[332826500,1721555467557,-500.0,0.00014246,2]
[332826501,1721555467566,-500.0,0.00014246,2]
[332826502,1721555467575,-500.0,0.00014246,2]
[332826503,1721555467584,-500.0,0.00014246,2]
[332826504,1721555467593,-500.0,0.00014246,2]
[332826505,1721555467603,-500.0,0.00014246,2]
[332826506,1721555467614,-500.0,0.00014246,2]
[332826507,1721555467623,-500.0,0.00014246,2]
[332826508,1721555467633,-500.0,0.00014246,2]
[332826509,1721555467642,-729.89,0.00014246,2]
[332826510,1721555467652,-500.0,0.00014246,2]
[332826511,1721555467660,-691.71,0.00014246,2]
[332826512,1721555467670,-500.0,0.00014246,2]
[332826513,1721555467679,-500.0,0.00014246,2]
[332826514,1721555467690,-500.0,0.00014246,2]
[332826515,1721555467700,-500.0,0.00014246,2]
[332826516,1721555467709,-912.64,0.00014246,2]
[332826517,1721555467720,-367.2449111,0.00014246,2]
[332826518,1721555467729,-500.0,0.00014246,2]
[332826519,1721555467740,-500.0,0.00014246,2]
[332826520,1721555467749,-2388.42,0.00014246,2]
[332826521,1721555467759,-500.0,0.00014246,2]
[332826522,1721555467769,-500.0,0.00014246,2]
[332826523,1721555467778,-500.0,0.00014246,2]
[332826524,1721555467788,-500.0,0.00014246,2]
[332826525,1721555467798,-500.0,0.00014246,2]
[332826526,1721555467808,-500.0,0.00014246,2]
[332826527,1721555467817,-868.2,0.00014246,2]
[332826528,1721555467826,-500.0,0.00014246,2]
[332826529,1721555467835,-500.0,0.00014246,2]
[332826530,1721555467844,-500.0,0.00014246,2]